bitfinex/quotes_BTCUSD_20240723
["timestamp","ask_amount","ask_price","bid_price","bid_amount"]
[1721751724685,0.05,66716.0,66686.0,0.0656]
[1721751724686,0.07348942,66695.0,66694.0,0.149938]
[1721751724890,0.21328942,66702.0,66694.0,0.14701991]
[1721751725093,0.21328942,66702.0,66691.0,0.299889]
[1721751725094,0.07348942,66695.0,66691.0,0.299889]
[1721751725288,0.07348942,66695.0,66680.0,0.299939]
[1721751725289,0.07348942,66695.0,66694.0,0.149938]
[1721751725506,0.07348942,66695.0,66694.0,0.14701991]
[1721751726960,0.07348942,66695.0,66694.0,0.14901991]
[1721751727169,0.07348942,66695.0,66694.0,0.14701991]
[1721751727367,0.07348942,66695.0,66690.0,0.149947]
[1721751727598,0.07348942,66695.0,66694.0,0.004]
[1721751727998,0.52329742,66695.0,66694.0,0.004]
[1721751728322,0.149957,66686.0,66677.0,0.299949]
[1721751728524,0.07348942,66682.0,66677.0,0.299951]
[1721751728694,0.07348942,66682.0,66675.0,0.299958]
[1721751728899,0.07348942,66682.0,66670.0,0.360044]
[1721751728900,0.16160832,66682.0,66670.0,0.360044]
[1721751729064,0.31157332,66682.0,66672.0,0.299973]
[1721751729271,0.16160832,66682.0,66674.0,0.299964]
[1721751729498,0.16160832,66682.0,66676.0,0.149978]
[1721751729785,0.31157332,66682.0,66675.0,0.14998]
[1721751730019,0.91143532,66682.0,66664.0,0.300009]
[1721751730217,0.91143532,66682.0,66681.0,0.005924]
[1721751730218,1.32445866,66682.0,66681.0,0.005924]
[1721751730593,1.27186632,66682.0,66681.0,0.005924]
[1721751730825,1.27186632,66682.0,66681.0,0.000924]
[1721751731000,1.28186632,66682.0,66681.0,0.002924]
[1721751731207,0.98193532,66682.0,66681.0,0.002924]
[1721751731413,0.98193532,66682.0,66681.0,0.001924]
[1721751731414,0.22410832,66682.0,66681.0,0.001924]
[1721751731722,0.53003932,66682.0,66681.0,0.001924]
[1721751731901,0.38207332,66682.0,66681.0,0.002924]
[1721751732779,0.23210832,66682.0,66681.0,0.002924]
[1721751733033,0.0160189,66682.0,66681.0,0.61413611]
[1721751733256,0.008,66682.0,66681.0,1.21300611]
[1721751733502,0.002,66682.0,66681.0,0.91407111]
[1721751733704,0.01,66682.0,66681.0,1.21500611]
[1721751733907,0.008,66682.0,66681.0,1.21300611]
[1721751734110,0.01,66682.0,66681.0,1.51394111]
[1721751734318,0.01,66682.0,66681.0,1.51494111]
[1721751734319,0.018,66682.0,66681.0,1.51494111]
[1721751734528,0.01,66682.0,66681.0,1.66394111]
[1721751734786,0.008,66682.0,66681.0,1.66544111]
[1721751735037,0.008,66682.0,66681.0,1.29250611]
[1721751735280,0.07348942,66695.0,66687.0,0.299905]
[1721751735507,0.07348942,66688.0,66682.0,0.14696265]
[1721751735731,0.07348942,66688.0,66687.0,0.149954]
[1721751735939,0.07348942,66688.0,66687.0,0.449862]
[1721751736155,0.07348942,66688.0,66687.0,0.74977]
[1721751736619,0.07348942,66688.0,66687.0,0.89678991]
[1721751736826,0.07348942,66688.0,66687.0,1.3163696]
[1721751737027,0.07348942,66695.0,66694.0,0.149938]
[1721751737235,0.07348942,66695.0,66694.0,0.89671191]
[1721751737900,0.07348942,66695.0,66694.0,1.19658891]
[1721751738096,0.07348942,66702.0,66701.0,0.449767]
[1721751738297,0.07348942,66702.0,66701.0,0.89663191]
[1721751738940,0.07348942,66702.0,66694.0,0.001]
[1721751739156,0.07348942,66695.0,66694.0,0.302877]
[1721751739358,0.07348942,66695.0,66694.0,0.003]
[1721751739576,0.07348942,66695.0,66694.0,0.154938]
[1721751739815,0.07348942,66695.0,66694.0,0.451815]
[1721751739997,0.07348942,66695.0,66694.0,0.59883491]
[1721751740126,0.07348942,66695.0,66694.0,0.002]
[1721751740327,0.07348942,66695.0,66681.0,0.150891]
[1721751740328,0.149952,66688.0,66681.0,0.150891]
[1721751740538,0.07348942,66682.0,66681.0,0.000924]
[1721751740959,0.97526346,66682.0,66681.0,0.000924]
[1721751741569,0.97526346,66682.0,66681.0,0.014924]
[1721751741770,0.97626346,66682.0,66681.0,0.00441059]
[1721751741995,0.149968,66681.0,66662.0,0.009284]
[1721751742191,0.07348942,66668.0,66663.0,0.25382841]
[1721751742399,0.07348942,66675.0,66663.0,0.14701991]
[1721751742625,0.07348942,66675.0,66667.0,0.299996]
[1721751742830,0.07348942,66668.0,66662.0,0.009284]
[1721751743032,0.00711752,66667.0,66664.0,0.150005]
[1721751743239,0.00711752,66667.0,66665.0,0.14701991]
[1721751743615,0.293686,66673.0,66666.0,0.150001]
[1721751743857,0.1437,66673.0,66667.0,0.14701991]
[1721751744036,0.15705854,66672.0,66667.0,0.14701991]
[1721751744656,0.00707054,66672.0,66667.0,0.31326007]
[1721751744875,0.00707054,66672.0,66667.0,0.16326207]
[1721751745114,0.00707054,66672.0,66667.0,0.14701991]
[1721751745247,0.00707054,66672.0,66667.0,0.14801991]
[1721751745451,0.15705854,66672.0,66667.0,0.14701991]
[1721751745652,0.16405854,66672.0,66667.0,0.14801991]
[1721751745851,0.52348042,66668.0,66667.0,0.002]
[1721751746079,0.89654514,66668.0,66667.0,0.002]
[1721751746282,0.29655714,66668.0,66667.0,0.002]
[1721751746532,0.07307072,66668.0,66667.0,0.002]
[1721751746866,0.22306772,66668.0,66667.0,0.002]
[1721751747172,0.52306172,66668.0,66667.0,0.002]
[1721751747390,0.22306772,66668.0,66667.0,0.001]
[1721751747617,0.07607072,66668.0,66662.0,0.009284]
[1721751747770,0.07607072,66668.0,66667.0,0.14701991]
[1721751747972,0.01307072,66668.0,66667.0,0.29701891]
[1721751748185,0.01307072,66668.0,66667.0,0.89701491]
[1721751748386,0.01007072,66668.0,66667.0,0.89701491]
[1721751748635,0.006,66668.0,66667.0,1.2414037]
[1721751748848,0.003,66668.0,66667.0,1.2414037]
[1721751749051,0.003,66668.0,66667.0,1.6914017]
[1721751749364,0.005,66668.0,66667.0,1.7144017]
[1721751749583,0.005,66668.0,66667.0,2.0143997]
[1721751749705,0.005,66668.0,66667.0,1.7144017]
[1721751749923,0.002,66668.0,66667.0,2.95199946]
[1721751750134,0.002794,66691.0,66690.0,0.749737]
[1721751750334,0.21343,66698.0,66691.0,0.149944]
[1721751750539,0.21343,66698.0,66692.0,0.14701991]
[1721751750748,0.07348942,66695.0,66685.0,0.149956]
[1721751750945,0.07348942,66695.0,66683.0,0.299924]
[1721751750946,0.07348942,66687.0,66686.0,0.14701991]
[1721751752359,0.149943,66692.0,66686.0,0.14701991]
[1721751752531,0.149941,66693.0,66686.0,0.3866585]
[1721751752831,0.002794,66686.0,66667.0,0.36149079]
[1721751753063,0.1453,66687.0,66684.0,0.14996]
[1721751753247,0.1453,66687.0,66669.0,0.1879601]
[1721751753248,0.002,66687.0,66686.0,0.149956]
[1721751753448,0.002,66687.0,66686.0,0.59688891]
[1721751753658,0.002,66687.0,66686.0,0.14701991]
[1721751753857,0.003,66687.0,66686.0,0.14701991]
[1721751753997,0.003,66687.0,66686.0,0.29697591]
[1721751754197,0.001,66687.0,66686.0,0.59688891]
[1721751754398,0.002,66687.0,66686.0,0.59788891]
[1721751754844,0.002,66687.0,66686.0,0.59751697]
[1721751755086,0.002794,66692.0,66687.0,0.149953]
[1721751755284,0.210838,66694.0,66688.0,0.14701991]
[1721751755907,0.0609,66694.0,66688.0,0.14701991]
[1721751756105,0.149941,66693.0,66688.0,0.19959939]
[1721751756318,0.149943,66692.0,66688.0,0.19959939]
[1721751756691,0.210839,66694.0,66688.0,0.14701991]
[1721751756886,0.002794,66693.0,66688.0,0.14701991]
[1721751757068,0.210839,66694.0,66688.0,0.14701991]
[1721751757482,0.149949,66689.0,66688.0,0.14701991]
[1721751757698,0.299882,66693.0,66668.0,0.299993]
[1721751757699,0.299922,66684.0,66668.0,0.299993]
[1721751757902,0.299922,66684.0,66677.0,0.149975]
[1721751757903,0.002794,66682.0,66677.0,0.149975]
[1721751758106,0.002794,66682.0,66681.0,0.149967]
[1721751758258,0.002794,66682.0,66681.0,0.29698691]
[1721751758467,0.00963415,66682.0,66681.0,0.59692191]
[1721751758688,0.00684015,66682.0,66681.0,0.29698691]
[1721751758938,0.00684015,66682.0,66681.0,0.59692191]
[1721751759093,0.00684015,66682.0,66681.0,0.5916718]
[1721751759287,0.00684015,66682.0,66681.0,1.01076378]
[1721751759556,0.002794,66687.0,66686.0,0.149956]
[1721751759688,0.002794,66687.0,66686.0,0.29697591]
[1721751759876,0.00683592,66687.0,66686.0,0.29697591]
[1721751760293,0.00683592,66687.0,66686.0,0.14701991]
[1721751760497,0.00683592,66687.0,66686.0,0.29697591]
[1721751760703,0.00683592,66687.0,66686.0,0.6565793]
[1721751760906,0.0616,66691.0,66690.0,0.149947]
[1721751761120,0.0792,66692.0,66691.0,0.449835]
[1721751761326,0.07026303,66696.0,66691.0,0.29696391]
[1721751761529,0.00962534,66694.0,66692.0,0.149943]
[1721751761733,0.00962534,66694.0,66691.0,0.14701991]
[1721751761734,0.00683134,66694.0,66691.0,0.14701991]
[1721751761931,0.002794,66693.0,66691.0,0.14701991]
[1721751762203,0.00683275,66692.0,66691.0,0.14701991]
[1721751762401,0.0778,66689.0,66672.0,0.299975]
[1721751762634,0.07628342,66688.0,66682.0,0.299927]
[1721751762806,0.07628342,66688.0,66684.0,0.149961]
[1721751763010,0.00683158,66687.0,66682.0,0.149964]
[1721751763365,0.0665,66685.0,66673.0,0.14701991]
[1721751763557,0.002794,66684.0,66678.0,0.149974]
[1721751763760,0.002794,66684.0,66677.0,0.299951]
[1721751763896,0.002794,66684.0,66680.0,0.149969]
[1721751764076,0.00683863,66683.0,66680.0,0.149969]
[1721751764297,0.002794,66682.0,66678.0,0.299948]
[1721751764490,0.002794,66682.0,66679.0,0.14997]
[1721751764730,0.00683945,66681.0,66679.0,0.14997]
[1721751765094,0.07348942,66680.0,66678.0,0.149972]
[1721751765269,0.002794,66684.0,66683.0,0.449889]
[1721751765502,0.002794,66684.0,66683.0,0.149963]
[1721751765703,0.002794,66684.0,66682.0,0.149965]
[1721751766038,0.002794,66684.0,66671.0,0.29998]
[1721751766039,0.002794,66684.0,66683.0,0.14701991]
[1721751766242,0.002794,66684.0,66679.0,0.003]
[1721751766451,0.07348942,66680.0,66679.0,0.003]
[1721751766649,0.07348942,66680.0,66678.0,0.149974]
[1721751766650,0.07348942,66680.0,66674.0,0.299965]
[1721751766860,0.07348942,66680.0,66676.0,0.149978]
[1721751767306,0.07348942,66680.0,66679.0,0.004]
[1721751767508,0.07348942,66680.0,66679.0,0.149972]
[1721751767718,0.07348942,66680.0,66678.0,0.149973]
[1721751767920,0.07848942,66680.0,66679.0,0.14701991]
[1721751768476,0.08348942,66680.0,66679.0,0.14701991]
[1721751769098,0.08848942,66680.0,66679.0,0.14701991]
[1721751769294,0.299946,66679.0,66671.0,0.149989]
[1721751769504,0.13708942,66672.0,66668.0,0.000924]
[1721751770322,0.0607,66678.0,66668.0,0.0610175]
[1721751770525,0.0607,66678.0,66673.0,0.149985]
[1721751770736,0.0607,66678.0,66669.0,0.14701991]
[1721751770947,0.0607,66678.0,66672.0,0.299975]
[1721751771120,0.0607,66678.0,66675.0,0.14998]
[1721751771346,0.0607,66678.0,66673.0,0.29997]
[1721751771522,0.0607,66678.0,66675.0,0.14998]
[1721751771862,0.0607,66678.0,66673.0,0.149984]
[1721751772419,0.0657,66678.0,66673.0,0.149984]
[1721751772621,0.0657,66678.0,66674.0,0.14701991]
[1721751772937,0.0657,66678.0,66674.0,0.2367161]
[1721751773139,0.0657,66678.0,66675.0,0.14998]
[1721751773342,0.0657,66678.0,66676.0,0.14701991]
[1721751773538,0.0627,66678.0,66676.0,0.14701991]
[1721751773758,0.360652,66678.0,66668.0,0.000924]
[1721751773960,0.07348942,66672.0,66668.0,0.000924]
[1721751774175,0.149977,66677.0,66671.0,0.149989]
[1721751774325,0.07348942,66673.0,66672.0,0.14701991]
[1721751774991,0.07348942,66673.0,66668.0,0.000924]
[1721751775220,0.229288,66672.0,66668.0,0.000924]
[1721751775649,0.0793,66672.0,66668.0,0.000924]
[1721751775799,0.07348942,66671.0,66670.0,0.449974]
[1721751776001,0.07348942,66671.0,66670.0,0.14701991]
[1721751776426,0.149981,66675.0,66670.0,0.14701991]
[1721751776666,0.07348942,66673.0,66670.0,0.14701991]
[1721751777185,0.00677867,66672.0,66670.0,0.14701991]
[1721751778152,0.00677867,66672.0,66670.0,0.14801991]
[1721751778557,0.00677867,66672.0,66670.0,0.14901991]
[1721751778777,0.00677867,66672.0,66670.0,0.14801991]
[1721751781199,0.00677867,66672.0,66671.0,0.59698991]
[1721751781407,0.00677867,66672.0,66671.0,1.0466381]
[1721751781604,0.0622,66684.0,66678.0,0.299947]
[1721751781814,0.0622,66684.0,66679.0,0.14701991]
[1721751781815,0.002794,66683.0,66679.0,0.14701991]
[1721751781986,0.00954,66683.0,66682.0,0.149965]
[1721751782187,0.00954,66683.0,66679.0,0.44696091]
[1721751782388,0.07348942,66681.0,66679.0,0.29699091]
[1721751782632,0.07348942,66681.0,66679.0,0.29698991]
[1721751782776,0.0622,66684.0,66682.0,0.149965]
[1721751783131,0.0622,66684.0,66681.0,0.149021]
[1721751783742,0.0762,66684.0,66680.0,0.29698891]
[1721751783966,0.002794,66683.0,66682.0,0.149964]
[1721751784101,0.0622,66684.0,66680.0,0.14701991]
[1721751784323,0.002794,66683.0,66682.0,0.149965]
[1721751784545,0.008,66683.0,66682.0,0.149965]
[1721751785082,0.09011681,66685.0,66684.0,0.299921]
[1721751785083,0.07348942,66685.0,66684.0,0.299921]
[1721751785352,0.07348942,66685.0,66684.0,0.14701991]
[1721751785461,0.07348942,66685.0,66684.0,0.29698091]
[1721751785660,0.01191937,66690.0,66684.0,0.44694191]
[1721751785888,0.07348942,66688.0,66686.0,0.149956]
[1721751786126,0.07348942,66688.0,66685.0,0.449873]
[1721751786440,0.07348942,66688.0,66686.0,0.149956]
[1721751786653,0.002794,66687.0,66686.0,0.149956]
[1721751786925,0.002794,66687.0,66685.0,0.149957]
[1721751787307,0.002794,66687.0,66685.0,0.150957]
[1721751787712,0.07948942,66688.0,66685.0,0.150957]
[1721751787916,0.07948942,66688.0,66687.0,0.149954]
[1721751788125,0.07948942,66688.0,66685.0,0.29797691]
[1721751788300,0.002794,66687.0,66685.0,0.14701991]
[1721751788703,0.07348942,66688.0,66685.0,0.14701991]
[1721751788911,0.007794,66687.0,66685.0,0.29697691]
[1721751789124,0.005,66687.0,66685.0,0.29034802]
[1721751789322,0.002794,66686.0,66685.0,0.149958]
[1721751789527,0.009,66687.0,66685.0,0.149958]
[1721751789720,0.002794,66686.0,66685.0,0.149958]
[1721751790082,0.002794,66686.0,66670.0,0.382883]
[1721751790083,0.002794,66686.0,66675.0,0.299961]
[1721751790359,0.002794,66686.0,66676.0,0.08921347]
[1721751790573,0.002794,66686.0,66668.0,0.000924]
[1721751790574,0.144,66680.0,66668.0,0.000924]
[1721751790778,0.002794,66686.0,66668.0,0.000924]
[1721751790779,0.890872,66669.0,66668.0,0.000924]
[1721751790979,0.590883,66669.0,66668.0,0.000924]
[1721751791204,0.890872,66669.0,66668.0,0.000924]
[1721751791358,0.89822274,66669.0,66668.0,0.000924]
[1721751791759,0.59823374,66669.0,66668.0,0.001924]
[1721751792168,0.89822274,66669.0,66668.0,0.000924]
[1721751792539,0.59823374,66669.0,66668.0,0.000924]
[1721751792759,0.00735074,66669.0,66668.0,0.150921]
[1721751792964,0.00735074,66669.0,66668.0,0.750909]
[1721751793188,0.1484,66675.0,66674.0,0.44995]
[1721751793603,0.1484,66675.0,66672.0,0.149987]
[1721751793820,0.00887483,66678.0,66674.0,0.299967]
[1721751794026,0.00733127,66675.0,66674.0,0.44995]
[1721751794267,0.002794,66679.0,66674.0,0.44995]
[1721751794430,0.002794,66679.0,66678.0,0.149974]
[1721751794669,0.299903,66689.0,66668.0,0.000924]
[1721751794670,0.46126,66686.0,66668.0,0.215024]
[1721751794893,0.002794,66685.0,66678.0,0.299946]
[1721751795101,0.002794,66685.0,66682.0,0.149964]
[1721751795339,0.002794,66685.0,66681.0,0.149967]
[1721751795560,0.002794,66685.0,66680.0,0.149969]
[1721751795775,0.22383833,66686.0,66675.0,0.29996]
[1721751795776,0.002794,66683.0,66675.0,0.29996]
[1721751795972,0.002794,66685.0,66678.0,0.149973]
[1721751796192,0.002794,66683.0,66680.0,0.149969]
[1721751796410,0.002794,66684.0,66679.0,0.149971]
[1721751796609,0.014,66679.0,66678.0,0.001]
[1721751796802,0.149972,66679.0,66678.0,0.001]
[1721751797008,0.002794,66679.0,66678.0,0.001]
[1721751797245,0.22345942,66680.0,66678.0,0.001]
[1721751797447,0.149981,66675.0,66672.0,0.000924]
[1721751797660,0.078,66678.0,66672.0,0.000924]
[1721751797661,0.07348942,66673.0,66672.0,0.000924]
[1721751798249,0.07348942,66673.0,66672.0,0.14794391]
[1721751798594,0.07348942,66673.0,66672.0,0.14994391]
[1721751798839,0.07348942,66673.0,66672.0,0.29993191]
[1721751799040,0.07348942,66673.0,66672.0,0.59790791]
[1721751799239,0.004,66679.0,66678.0,0.149974]
[1721751799445,0.07348942,66688.0,66678.0,0.149974]
[1721751799446,0.002794,66692.0,66691.0,0.449835]
[1721751799617,0.0609,66709.0,66692.0,0.499829]
[1721751799833,0.002794,66713.0,66692.0,1.38870384]
[1721751800012,0.002794,66715.0,66692.0,1.53035641]
[1721751800214,0.06982986,66716.0,66692.0,2.17174241]
[1721751800448,0.0609,66716.0,66692.0,2.46572497]
[1721751800622,0.002794,66715.0,66692.0,2.46572497]
[1721751800817,0.07628342,66715.0,66692.0,2.46572497]
[1721751801080,0.07348942,66708.0,66692.0,1.9309724]
[1721751801425,0.07348942,66708.0,66692.0,2.08653156]
[1721751801632,0.00184,66693.0,66692.0,2.25263156]
[1721751801832,0.00284,66693.0,66692.0,2.26163156]
[1721751802080,0.07348942,66708.0,66693.0,0.05]
[1721751802280,0.07335,66740.0,66729.0,1.049016]
[1721751802483,0.00845,66740.0,66729.0,1.46213591]
[1721751802737,0.25208007,66730.0,66729.0,1.92485496]
[1721751802956,0.24655718,66730.0,66729.0,2.27181761]
[1721751803128,0.24655718,66730.0,66729.0,2.3203327]
[1721751803303,0.24655718,66730.0,66729.0,2.27181761]
[1721751803486,0.24655718,66730.0,66729.0,2.51862221]
[1721751804027,0.24755718,66730.0,66729.0,2.78282612]
[1721751804451,0.24655718,66730.0,66729.0,2.76982612]
[1721751804639,0.24655718,66730.0,66729.0,3.48933099]
[1721751804796,0.24755718,66730.0,66729.0,3.50233099]
[1721751804998,0.24755718,66730.0,66729.0,3.51633099]
[1721751805395,0.24755718,66730.0,66729.0,3.51752875]
[1721751805598,0.24755718,66730.0,66729.0,3.50353378]
[1721751805799,0.24755718,66730.0,66729.0,2.78753378]
[1721751806405,0.24755718,66730.0,66729.0,2.69633094]
[1721751806811,0.24655718,66730.0,66729.0,3.40333094]
[1721751807009,0.24655718,66730.0,66729.0,3.41733094]
[1721751807613,0.24655718,66730.0,66729.0,3.46584681]
[1721751807814,0.24655718,66730.0,66729.0,2.74584681]
[1721751808407,0.24655718,66730.0,66729.0,3.46584681]
[1721751808613,0.24655718,66730.0,66729.0,2.44612781]
[1721751809232,0.24655718,66730.0,66729.0,2.74584681]
[1721751809632,0.24655718,66730.0,66729.0,3.46584681]
[1721751810291,0.24655718,66730.0,66729.0,3.4171573]
[1721751810692,0.24655718,66730.0,66729.0,3.50584681]
[1721751810894,0.24655718,66730.0,66729.0,3.4571573]
[1721751812836,0.24655718,66730.0,66729.0,2.84002781]
[1721751813043,0.24655718,66730.0,66729.0,2.9448423]
[1721751813244,0.24655718,66730.0,66729.0,2.89632643]
[1721751813443,0.24655718,66730.0,66729.0,2.99632643]
[1721751813953,0.24655718,66730.0,66729.0,2.98232643]
[1721751814159,0.24655718,66730.0,66729.0,2.88232643]
[1721751814490,0.24655718,66730.0,66729.0,1.8211233]
[1721751814698,0.24655718,66730.0,66729.0,0.23502391]
[1721751814935,0.24655718,66730.0,66729.0,0.14793234]
[1721751815087,0.24655718,66730.0,66729.0,0.014]
[1721751815286,0.40094809,66730.0,66729.0,0.014]
[1721751815599,0.70066309,66730.0,66729.0,0.014]
[1721751815769,1.14507809,66730.0,66729.0,0.014]
[1721751815969,1.44479309,66730.0,66729.0,0.028]
[1721751816188,1.14507809,66730.0,66729.0,0.014]
[1721751816591,1.14507809,66730.0,66729.0,0.028]
[1721751816806,0.54564809,66730.0,66729.0,0.028]
[1721751817018,1.14507809,66730.0,66729.0,0.014]
[1721751817344,1.44979309,66730.0,66729.0,0.001]
[1721751817740,1.49979309,66730.0,66729.0,0.003]
[1721751817957,0.0614,66724.0,66709.0,0.002794]
[1721751818096,0.07348942,66712.0,66710.0,0.14701991]
[1721751818705,0.0045279,66711.0,66710.0,0.14701991]
[1721751818932,0.0045279,66711.0,66710.0,0.29692191]
[1721751819315,0.004,66712.0,66711.0,0.1499]
[1721751819512,0.004,66712.0,66711.0,0.14701991]
[1721751819715,0.008,66712.0,66711.0,0.14701991]
[1721751819911,0.01252104,66712.0,66711.0,0.89651991]
[1721751820192,0.008,66712.0,66711.0,1.19631991]
[1721751820391,0.008,66712.0,66711.0,1.24650879]
[1721751820643,0.0614,66724.0,66711.0,0.19720879]
[1721751821005,0.0614,66724.0,66712.0,0.17281391]
[1721751821281,0.00453459,66723.0,66722.0,0.449625]
[1721751821488,0.00453459,66723.0,66722.0,0.59664491]
[1721751821691,0.0614,66724.0,66723.0,0.149873]
[1721751821938,0.0614,66724.0,66723.0,0.89638491]
[1721751822106,0.06593608,66724.0,66723.0,0.89638491]
[1721751822318,0.00453608,66724.0,66723.0,0.9734099]
[1721751822494,0.00453608,66724.0,66723.0,1.2961559]
[1721751822701,0.24655718,66730.0,66729.0,0.749297]
[1721751822907,0.24655718,66730.0,66729.0,1.19603591]
[1721751823095,0.25109067,66730.0,66729.0,1.19603591]
[1721751823316,0.24655718,66730.0,66729.0,1.19603591]
[1721751823518,0.25109067,66730.0,66729.0,0.59659791]
[1721751823716,0.25109067,66730.0,66729.0,0.89631691]
[1721751824306,0.25109067,66730.0,66729.0,1.2856676]
[1721751824506,0.25109067,66730.0,66729.0,1.3086676]
[1721751824708,0.24755718,66730.0,66729.0,1.3156676]
[1721751825326,0.24755718,66730.0,66729.0,1.8814866]
[1721751825737,0.24755718,66730.0,66729.0,1.8864866]
[1721751826142,0.24755718,66730.0,66729.0,2.8064866]
[1721751826715,0.24755718,66730.0,66729.0,2.5067676]
[1721751826919,0.24755718,66730.0,66729.0,2.57215713]
[1721751827313,0.24755718,66730.0,66729.0,1.7317676]
[1721751827642,0.24755718,66730.0,66729.0,2.9814866]
[1721751827842,0.24755718,66730.0,66729.0,3.03787613]
[1721751828072,0.24655718,66730.0,66729.0,3.2852056]
[1721751828290,0.24655718,66730.0,66729.0,3.4165056]
[1721751828612,0.24755718,66730.0,66729.0,3.27153156]
[1721751828784,0.24755718,66730.0,66729.0,3.32023778]
[1721751829322,0.24755718,66730.0,66729.0,3.30823778]
[1721751829987,0.24755718,66730.0,66729.0,3.25953156]
[1721751830186,0.24655718,66730.0,66729.0,3.25253156]
[1721751830392,0.24655718,66730.0,66729.0,2.35123778]
[1721751830615,0.24655718,66730.0,66729.0,2.31653156]
[1721751831109,0.24755718,66730.0,66729.0,2.32544624]
[1721751831311,0.24655718,66730.0,66729.0,2.37114203]
[1721751831516,0.24755718,66730.0,66729.0,3.09514203]
[1721751831861,0.24755718,66730.0,66729.0,3.08114203]
[1721751832065,0.24755718,66730.0,66729.0,2.59952326]
[1721751832245,0.24755718,66730.0,66729.0,1.4866676]
[1721751832436,0.24755718,66730.0,66729.0,1.4366676]
[1721751832652,0.24755718,66730.0,66729.0,1.4866676]
[1721751832781,0.24655718,66730.0,66729.0,1.56322475]
[1721751832983,0.24655718,66730.0,66729.0,1.4726676]
[1721751833188,0.24755718,66730.0,66729.0,1.4866676]
[1721751833587,0.24755718,66730.0,66729.0,1.4726676]
[1721751833831,0.24755718,66730.0,66729.0,1.4866676]
[1721751834027,0.24655718,66730.0,66729.0,1.4226676]
[1721751834242,0.24655718,66730.0,66729.0,1.03331691]
[1721751834433,0.24755718,66730.0,66729.0,1.03331691]
[1721751834661,0.24755718,66730.0,66729.0,1.04731691]
[1721751836317,0.24755718,66730.0,66729.0,1.34703591]
[1721751836638,0.24755718,66730.0,66729.0,2.43313591]
[1721751836837,0.24755718,66730.0,66729.0,2.77012267]
[1721751837045,0.24755718,66730.0,66729.0,2.67012267]
[1721751837265,0.24755718,66730.0,66729.0,2.58009856]
[1721751837465,0.24755718,66730.0,66729.0,1.81009856]
[1721751838079,0.24755718,66730.0,66729.0,2.53009856]
[1721751838296,0.24755718,66730.0,66729.0,3.01975071]
[1721751839092,0.24755718,66730.0,66729.0,2.72003171]
[1721751839295,0.24755718,66730.0,66729.0,2.72017914]
[1721751839498,0.24755718,66730.0,66729.0,1.61313591]
[1721751839701,0.30755718,66730.0,66729.0,0.62459791]
[1721751839895,0.30755718,66730.0,66729.0,0.32487891]
[1721751840098,0.3122296,66730.0,66729.0,0.62459791]
[1721751840251,0.3122296,66730.0,66729.0,1.22403591]
[1721751840455,0.3122296,66730.0,66729.0,0.91031691]
[1721751840843,0.3112296,66730.0,66729.0,0.60359791]
[1721751841028,0.3112296,66730.0,66729.0,0.91231691]
[1721751841029,0.3122296,66730.0,66729.0,0.91231691]
[1721751841642,0.3122296,66730.0,66729.0,0.99490557]
[1721751841794,0.2522296,66730.0,66729.0,1.31762457]
[1721751841997,0.24755718,66730.0,66729.0,0.92831691]
[1721751842201,0.24755718,66730.0,66729.0,0.60559791]
[1721751842407,0.2512223,66730.0,66729.0,0.89631691]
[1721751842830,0.2522223,66730.0,66729.0,1.20903591]
[1721751843173,0.2512223,66730.0,66729.0,1.3599395]
[1721751843368,0.2522223,66730.0,66729.0,2.2509395]
[1721751843554,0.24855718,66730.0,66729.0,1.3659395]
[1721751843966,0.24855718,66730.0,66729.0,1.3709395]
[1721751844481,0.24855718,66730.0,66729.0,1.3719395]
[1721751844881,0.24855718,66730.0,66729.0,0.93131691]
[1721751845130,0.24855718,66730.0,66729.0,0.15901991]
[1721751845337,0.24855718,66730.0,66729.0,0.31087891]
[1721751845530,0.25319189,66730.0,66729.0,0.91031691]
[1721751845913,0.25419189,66730.0,66729.0,1.3880411]
[1721751846156,0.25219189,66730.0,66729.0,2.1640411]
[1721751846356,0.24655718,66730.0,66729.0,1.3740411]
[1721751846561,0.24755718,66730.0,66729.0,0.93331691]
[1721751846739,0.24755718,66730.0,66729.0,0.29687891]
[1721751846941,0.25319552,66730.0,66729.0,0.90831691]
[1721751847141,0.25319552,66730.0,66729.0,1.23103591]
[1721751847398,0.25319552,66730.0,66729.0,2.08303591]
[1721751847600,0.24855718,66730.0,66729.0,2.14826776]
[1721751847733,0.24855718,66730.0,66729.0,2.6870404]
[1721751847937,0.24655718,66730.0,66729.0,2.7630404]
[1721751848376,0.24755718,66730.0,66729.0,2.7770404]
[1721751848983,0.24755718,66730.0,66729.0,2.6770404]
[1721751849200,0.24755718,66730.0,66729.0,2.26208955]
[1721751849357,0.24755718,66730.0,66729.0,1.02237055]
[1721751849699,0.39045718,66730.0,66729.0,0.89631691]
[1721751850000,0.25220155,66730.0,66729.0,1.26003591]
[1721751850173,0.24755718,66730.0,66729.0,2.06924171]
[1721751850379,0.24755718,66730.0,66729.0,1.44620436]
[1721751850543,0.24855718,66730.0,66729.0,1.31324171]
[1721751850745,0.24755718,66730.0,66729.0,1.32224171]
[1721751850948,0.47871418,66730.0,66729.0,0.26186173]
[1721751851153,1.14938723,66730.0,66729.0,0.026]
[1721751851374,1.14838723,66730.0,66729.0,0.012]
[1721751851578,1.14838723,66730.0,66701.0,0.18382874]
[1721751851579,0.1469,66719.0,66712.0,0.299793]
[1721751851751,0.00512784,66718.0,66714.0,0.299785]
[1721751851947,0.00512784,66718.0,66717.0,0.449659]
[1721751852173,0.1469,66719.0,66718.0,0.149884]
[1721751852397,0.15203101,66719.0,66718.0,0.83862821]
[1721751852612,0.1469,66719.0,66718.0,0.83862821]
[1721751852825,0.1469,66719.0,66718.0,0.449653]
[1721751852967,0.24755718,66730.0,66718.0,0.449653]
[1721751852968,0.1365,66726.0,66725.0,0.149868]
[1721751853175,0.1365,66726.0,66725.0,0.59662491]
[1721751853418,0.1365,66726.0,66725.0,0.89636191]
[1721751853715,0.24655718,66730.0,66729.0,0.449578]
[1721751853948,0.24655718,66730.0,66729.0,0.98546357]
[1721751854093,0.24655718,66730.0,66729.0,1.30818257]
[1721751855160,0.24655718,66730.0,66729.0,1.31164395]
[1721751855359,0.24655718,66730.0,66729.0,1.4586066]
[1721751855785,0.24655718,66730.0,66729.0,1.31164395]
[1721751856487,0.24655718,66730.0,66729.0,1.30964395]
[1721751856690,0.24655718,66730.0,66729.0,1.30864395]